fUSD/lending_fUSD_20240607
["ID","MTS","AMOUNT","RATE_DAILY","PERIOD"]
[328721746,1717728641346,-422.39,0.0002589,2]
[328721747,1717728641358,-150.0,0.0002589,2]
[328721748,1717728641371,-353.2,0.0002589,2]
[328721749,1717728641383,-500.0,0.00025939,2]
[328721750,1717728641396,-505.68699967,0.00025939,2]
[328721751,1717728641409,-500.0,0.00025939,2]
[328721752,1717728641421,-500.0,0.00025939,2]
[328721753,1717728641434,-412.17126416,0.000264,2]
[328721754,1717728641446,-60.52952314,0.00026478,2]
[328721755,1717728641460,-106.81047686,0.00026478,2]
[328721756,1717728641470,-564.71300203,0.00026487,2]
[328721757,1717728641483,-4378.96699797,0.00026487,2]
[328721758,1717728641493,-500.0,0.00026487,2]
[328721759,1717728641506,-9524.24563236,0.0002654,2]
[328721760,1717728641519,-6884.46909406,0.00026612,2]
[328721761,1717728641532,-2559.31467355,0.00026612,2]
[328721762,1717728641545,-500.0,0.00026699,2]
[328721763,1717728641557,-286.69974766,0.00026699,2]
[328721764,1717728641568,-1521.74300283,0.00026699,2]
[328721765,1717728641581,-9312.38318625,0.000267,2]
[328721766,1717728641595,-841.415,0.000267,2]
[328721767,1717728641628,-517.76,0.0002577,2]
[328721768,1717728641639,-2408.57676954,0.000267,2]
[328721769,1717728641652,-4207.32988912,0.000267,2]
[328721770,1717728641669,-2762.81609821,0.000267,2]
[328721806,1717728641950,-517.76,0.00025838,2]
[328721808,1717728641961,-517.76,0.00025906,2]
[328721810,1717728641972,-517.76,0.00025974,2]
[328721813,1717728641984,-517.76,0.00026042,2]
[328721815,1717728641994,-461.88399336,0.000267,2]
[328721817,1717728642008,-11505.8443114,0.000267,2]
[328721819,1717728642021,-468.39336769,0.000267,2]
[328721822,1717728642035,-1819.99999776,0.000267,2]
[328721824,1717728642049,-41614.41058667,0.000267,2]
[328721826,1717728642059,-422.39,0.00026712,2]
[328721828,1717728642070,-526.07,0.00026712,2]
[328721831,1717728642081,-353.2,0.00026712,2]
[328721833,1717728642093,-150.0,0.00026712,2]
[328721835,1717728642104,-152.74,0.00026712,2]
[328721837,1717728642119,-353.2,0.00026712,2]
[328721839,1717728642130,-422.39,0.00026712,2]
[328721842,1717728642141,-526.07,0.00026712,2]
[328721844,1717728642152,-422.39,0.00026712,2]
[328721845,1717728642162,-526.07,0.00026712,2]
[328721846,1717728642173,-353.2,0.00026712,2]
[328721847,1717728642183,-353.2,0.00026712,2]
[328721848,1717728642194,-422.39,0.00026712,2]
[328721849,1717728642204,-526.07,0.00026712,2]
[328721850,1717728642215,-422.39,0.00026712,2]
[328721851,1717728642225,-353.2,0.00026712,2]
[328721852,1717728642240,-526.07,0.00026712,2]
[328721853,1717728642250,-372.18,0.00026712,2]
[328721854,1717728642261,-353.2,0.00026712,2]
[328721855,1717728642274,-526.07,0.00026712,2]
[328721856,1717728642285,-353.2,0.00026712,2]
[328721857,1717728642296,-526.07,0.00026712,2]
[328721858,1717728642307,-352.64,0.00026712,2]
[328721859,1717728642317,-526.07,0.00026712,2]
[328721860,1717728642329,-526.07,0.00026712,2]
[328721861,1717728642340,-526.07,0.00026712,2]
[328721862,1717728642351,-526.07,0.00026712,2]
[328721863,1717728642362,-526.07,0.00026712,2]
[328721864,1717728642373,-526.07,0.00026712,2]
[328721865,1717728642384,-526.07,0.00026712,2]
[328721866,1717728642396,-526.07,0.00026712,2]
[328721867,1717728642408,-526.07,0.00026712,2]
[328721868,1717728642419,-526.07,0.00026712,2]
[328721869,1717728642429,-526.07,0.00026712,2]
[328721870,1717728642440,-526.07,0.00026712,2]
[328721871,1717728642451,-526.07,0.00026712,2]
[328721872,1717728642462,-526.07,0.00026712,2]
[328721873,1717728642473,-526.07,0.00026712,2]
[328721874,1717728642484,-526.07,0.00026712,2]
[328721875,1717728642494,-697.77,0.00026712,2]
[328721876,1717728642504,-6516.49344632,0.00026798,2]
[328721877,1717728642516,-1042.33917751,0.000268,2]
[328721878,1717728642527,-34972.42451795,0.000268,2]
[328721879,1717728642538,-257.9877105,0.000268,2]
[328721880,1717728642548,-1203.42195458,0.000268,2]
[328721881,1717728642559,-500.0,0.000268,2]
[328721882,1717728642570,-446.79515573,0.000268,2]
[328721883,1717728642583,-169.07823965,0.000268,2]
[328721884,1717728642594,-1332.81141549,0.000268,2]
[328721885,1717728642605,-1046.71514559,0.000268,2]
[328721886,1717728642617,-2000.0,0.000268,2]
[328721887,1717728642627,-200.0,0.000268,2]
[328721888,1717728642639,-2000.0,0.000268,2]
[328721889,1717728642649,-200.0,0.000268,2]
[328721890,1717728642660,-721.52603126,0.000268,2]
[328721891,1717728642671,-2000.0,0.000268,2]
[328721892,1717728642682,-200.0,0.000268,2]
[328721893,1717728642693,-2000.0,0.000268,2]
[328721894,1717728642704,-200.0,0.000268,2]
[328721895,1717728642715,-1171.2642,0.000268,2]
[328721896,1717728642727,-180.0,0.00026955,2]
[328721897,1717728642738,-6884.46909405,0.00026977,2]
[328721898,1717728642750,-2559.31467346,0.00026977,2]
[328721899,1717728642762,-1300.0,0.00027,2]
[328721900,1717728642775,-500.0,0.00027035,2]
[328721901,1717728642786,-506.12801806,0.00027035,2]
[328721902,1717728642798,-500.0,0.00027035,2]
[328721903,1717728642811,-198.62,0.00027064,2]
[328721904,1717728642823,-2000.0,0.00027068,2]
[328721905,1717728642834,-200.0,0.00027068,2]
[328721906,1717728642846,-2000.0,0.00027068,2]
[328721907,1717728642856,-200.0,0.00027068,2]
[328721908,1717728642868,-2000.0,0.00027068,2]
[328721909,1717728642879,-200.0,0.00027068,2]
[328721910,1717728642891,-200.0,0.00027068,2]
[328721911,1717728642904,-402.76,0.00027115,2]
[328721912,1717728642915,-348.01,0.00027165,2]
[328721913,1717728642929,-612.23486381,0.00027239,2]
[328721914,1717728642940,-151.51,0.0002726,2]
[328721915,1717728642950,-150.0,0.0002726,2]
[328721916,1717728642963,-150.0,0.0002726,2]
[328721917,1717728642976,-150.0,0.0002726,2]
[328721918,1717728642987,-2306.0,0.000273,3]
[328721919,1717728642998,-2000.0,0.00027339,2]
[328721920,1717728643011,-200.0,0.00027339,2]
[328721921,1717728643023,-2000.0,0.00027339,2]
[328721922,1717728643034,-200.0,0.00027339,2]
[328721923,1717728643045,-2000.0,0.00027339,2]
[328721924,1717728643056,-200.0,0.00027339,2]
[328721925,1717728643067,-200.0,0.00027339,2]
[328721926,1717728643079,-6884.46909405,0.00027343,2]
[328721927,1717728643091,-2559.31467346,0.00027343,2]
[328721928,1717728643101,-810.31916799,0.0002739,2]
[328721929,1717728643112,-151.27248876,0.00027397,2]
[328721930,1717728643124,-173.43,0.00027397,2]
[328721931,1717728643135,-1144.83,0.00027397,10]
[328721932,1717728643149,-954.03,0.00027397,10]
[328721933,1717728643162,-795.02,0.00027397,10]
[328721934,1717728643173,-650.0,0.000274,2]
[328721935,1717728643184,-751.68038249,0.000274,2]
[328721936,1717728643194,-200.0,0.000274,2]
[328721937,1717728643204,-5698.0,0.000274,2]
[328721938,1717728643215,-200.34801741,0.000274,2]
[328721939,1717728643229,-555.29,0.000274,2]
[328721940,1717728643243,-1088.3299892,0.000274,2]
[328721941,1717728643258,-748.5984456,0.000274,2]
[328721942,1717728643271,-549.80271798,0.000274,2]
[328721943,1717728643282,-443.63082981,0.000274,2]
[328721944,1717728643292,-339.02,0.000274,2]
[328721945,1717728643301,-1000.0,0.000274,2]
[328721946,1717728643312,-428.73477604,0.00027583,2]
[328721947,1717728643367,-517.76,0.0002611,2]
[328721948,1717728643376,-71.26522396,0.00027583,2]
[328721953,1717728643663,-480.46219728,0.00027612,2]
[328721957,1717728643690,-1519.53780272,0.00027612,2]
[328721959,1717728643703,-200.0,0.00027612,2]
[328721961,1717728643714,-2000.0,0.00027612,2]
[328721962,1717728643724,-200.0,0.00027612,2]
[328721963,1717728643736,-186.83185128,0.00027612,2]
[328721964,1717728643747,-200.0,0.00027612,2]
[328721965,1717728643757,-200.0,0.00027612,2]
[328721966,1717728643766,-612.23486374,0.00027619,2]
[328721967,1717728643776,-3000.0,0.000277,2]
[328721968,1717728643786,-1298.47525306,0.00027708,2]
[328721969,1717728643799,-354.72788086,0.00027708,2]
[328721970,1717728643811,-348.49967892,0.00027708,2]
[328721971,1717728643839,-422.39,0.0002589,2]
[328721972,1717728643848,-4882.76628121,0.00027708,2]
[328721973,1717728643857,-2559.31467346,0.00027708,2]
[328721974,1717728643867,-219.314791,0.00027728,2]
[328721975,1717728643876,-18.77238381,0.00027728,2]
[328721976,1717728643887,-461.81999999,0.00027728,2]
[328721977,1717728643898,-89.2523302,0.00027728,2]
[328721978,1717728643907,-151.922276,0.00027728,2]
[328721979,1717728643916,-1511.68593206,0.00027888,2]
[328721981,1717728643927,-488.31406794,0.00027888,2]
[328721982,1717728643937,-200.0,0.00027888,2]
[328721983,1717728643946,-2000.0,0.00027888,2]
[328721984,1717728643955,-200.0,0.00027888,2]
[328721985,1717728643964,-200.0,0.00027888,2]
[328721986,1717728643973,-200.0,0.00027888,2]
[328721987,1717728643982,-1550.9004968,0.000279,10]
[328721988,1717728643994,-694.22481705,0.000279,10]
[328721989,1717728644003,-612.23486374,0.00027999,2]
[328721990,1717728644012,-282.95787815,0.00028,7]
[328721991,1717728644021,-468.72828225,0.00028,2]
[328721992,1717728644030,-6057.1182881,0.00028,3]
[328721993,1717728644041,-3379.91944124,0.00028,3]
[328721994,1717728644116,-662.52,0.00027397,10]
[328721995,1717728644125,-2358.142,0.00028,3]
[328721996,1717728644153,-526.07,0.0002589,2]
[328721997,1717728644163,-2914.07481075,0.00028,3]
[328721998,1717728644174,-290.74545991,0.00028,3]
[328721999,1717728644183,-1640.33531932,0.00028073,2]
[328722000,1717728644195,-259.81768672,0.00028073,2]
[328722001,1717728644205,-348.8799999,0.00028073,2]
[328722002,1717728644216,-4635.43608811,0.00028073,2]
[328722003,1717728644225,-2559.31467346,0.00028073,2]
[328722004,1717728644235,-219.314791,0.00028075,2]
[328722005,1717728644244,-569.844714,0.00028075,2]
[328722006,1717728644253,-151.922276,0.00028075,2]
[328722007,1717728644262,-500.0,0.00028131,2]
[328722008,1717728644271,-500.0,0.00028131,2]
[328722009,1717728644280,-612.23486374,0.00028379,2]
[328722010,1717728644290,-217.0,0.000284,5]
[328722011,1717728644299,-185.60269822,0.000284,2]
[328722012,1717728644308,-219.314791,0.00028422,2]
[328722013,1717728644318,-569.844714,0.00028422,2]
[328722014,1717728644327,-151.922276,0.00028422,2]
[328722015,1717728644337,-390.15684488,0.00028424,2]
[328722016,1717728644346,-6884.46909405,0.00028439,2]
[328722017,1717728644355,-2559.31467346,0.00028439,2]
[328722018,1717728644365,-213.50683215,0.00028458,2]
[328722019,1717728644374,-363.2274464,0.00028458,2]
[328722020,1717728644383,-150.5,0.0002847,15]
[328722021,1717728644393,-205.42,0.0002847,15]
[328722022,1717728644402,-150.5,0.0002848,15]
[328722023,1717728644411,-150.5,0.0002848,15]
[328722024,1717728644420,-150.5,0.0002849,15]
[328722025,1717728644429,-150.5,0.0002849,15]
[328722026,1717728644439,-154.87,0.0002849,2]
[328722027,1717728644448,-339.02,0.0002849,2]
[328722028,1717728644457,-339.02,0.0002849,2]
[328722029,1717728644467,-339.02,0.0002849,2]
[328722030,1717728644476,-339.02,0.0002849,2]
[328722031,1717728644485,-339.02,0.0002849,2]
[328722032,1717728644494,-339.02,0.0002849,2]
[328722033,1717728644503,-339.02,0.0002849,2]
[328722034,1717728644513,-339.02,0.0002849,2]
[328722035,1717728644522,-339.02,0.0002849,2]
[328722036,1717728644531,-474.25089546,0.00028498,2]
[328722037,1717728644541,-170.48434411,0.00028498,7]
[328722038,1717728644550,-2009.24235392,0.00028498,2]
[328722039,1717728644559,-819.34051136,0.00028499,2]
[328722040,1717728644569,-4294.60113001,0.00028499,2]
[328722041,1717728644580,-431.05952276,0.00028499,2]
[328722042,1717728644591,-500.0,0.00028499,2]
[328722043,1717728644600,-500.0,0.00028499,2]
[328722044,1717728644609,-500.0,0.00028499,2]
[328722045,1717728644618,-443.59545221,0.00028499,2]
[328722046,1717728644630,-52415.6304137,0.000285,2]
[328722047,1717728644642,-16736.653565,0.000285,2]
[328722048,1717728644653,-872.03993,0.000285,2]
[328722049,1717728644666,-865.00999,0.000285,2]
[328722050,1717728644678,-4008.08647742,0.000285,2]
[328722051,1717728644689,-506.71377837,0.000285,2]
[328722052,1717728644700,-380.39383597,0.000285,2]
[328722053,1717728644713,-6069.14862074,0.000285,2]
[328722056,1717728644837,-577.17,0.0002589,2]
[328722057,1717728644847,-2032.54019156,0.000285,2]
[328722058,1717728644858,-1523.28291541,0.000285,2]
[328722059,1717728644870,-1468.79524653,0.000285,2]
[328722060,1717728644881,-1095.17482267,0.000285,2]
[328722061,1717728644892,-400.0,0.000285,2]
[328722062,1717728644903,-337.65,0.000285,2]
[328722063,1717728644914,-5900.81453532,0.000285,2]
[328722067,1717728646808,-226.6238354,0.000201,2]
[328722070,1717728646818,-1150.46770494,0.000285,2]
[328722093,1717728647116,-453.0,0.000285,2]
[328722094,1717728647127,-648.06485318,0.000285,2]
[328722095,1717728647328,-644.70431179,0.000285,2]
[328722110,1717728658106,1041.99699487,0.00014,2]
[328722120,1717729094102,4137.81869522,0.00014,2]
[328722121,1717729100379,235.9148808,0.00014,2]
[328722127,1717729670570,500.0,0.000299,120]
[328722128,1717729719497,2675.06170539,0.0003,40]
[328722149,1717729832231,-155.0,0.00014873,2]
[328722150,1717729832240,-155.0,0.00014874,2]
[328722151,1717729832250,-158.61624587,0.0001489,2]
[328722152,1717729832260,-1184.92853892,0.0001499,2]
[328722153,1717729832432,-25417.62485824,0.0001499,2]
[328722154,1717729832445,-3525.17523691,0.0001499,2]
[328722174,1717729838194,-527.3426415,0.0001499,2]
[328722175,1717729838206,-11932.16887612,0.0001499,2]
[328722194,1717729841106,-578.06080476,0.0001499,2]
[328722195,1717729841364,-643.65507974,0.0001499,2]
[328722196,1717729842457,-2611.61319216,0.0001499,2]
[328722197,1717729842470,-26661.82848121,0.0001499,2]
[328722198,1717729842480,-155.18173085,0.00018,2]
[328722199,1717729842489,-1333.67,0.000185,2]
[328722200,1717729842500,-305.16694987,0.0002,2]
[328722201,1717729842509,-226.6238354,0.000201,2]
[328722202,1717729842519,-1211.16196979,0.00020998,2]
[328722203,1717729842531,-568.35362256,0.00020998,2]
[328722204,1717729842543,-364.12731579,0.00020999,2]
[328722205,1717729842552,-6259.73033977,0.00020999,2]
[328722206,1717729842562,-973.5213412,0.00021,2]
[328722207,1717729842571,-507.40709392,0.000219,2]
[328722208,1717729842581,-1000.0,0.00022,3]
[328722209,1717729842590,-176.8685142,0.00023,2]
[328722210,1717729842600,-364.84,0.00023268,2]
[328722211,1717729842609,-155.05,0.00024384,2]
[328722212,1717729842618,-165.61,0.00024384,2]
[328722213,1717729842627,-1250.0,0.00025,2]
[328722214,1717729842638,-1240.33191812,0.00025,2]
[328722215,1717729842647,-155.0,0.00025,2]
[328722216,1717729842656,-198.62,0.00025043,2]
[328722217,1717729842665,-250.0,0.00025062,2]
[328722219,1717729842674,-279.11,0.00025181,2]
[328722221,1717729842684,-250.0,0.00025186,2]
[328722223,1717729842694,-250.0,0.00025191,2]
[328722225,1717729842703,-155.31,0.000252,2]
[328722226,1717729842713,-1000.0,0.0002528,2]
[328722227,1717729842722,-1096.58010584,0.00025358,2]
[328722234,1717729843171,-2044.41617089,0.00025358,2]
[328722236,1717729843183,-1823.11372327,0.00025358,2]
[328722238,1717729843193,-170.6,0.00025428,2]
[328722240,1717729843202,-364.84,0.00025532,2]
[328722241,1717729843211,-473.65012643,0.00025627,2]
[328722242,1717729843461,-526.34987357,0.00025627,2]
[328722243,1717729843473,-337.36774214,0.00025648,2]
[328722244,1717729843482,-500.0,0.00025939,2]
[328722245,1717729843492,-500.0,0.00025939,2]
[328722246,1717729843505,-500.0,0.00026487,2]
[328722247,1717729843516,-3000.0,0.000266,2]
[328722248,1717729843527,-750.0,0.000266,2]
[328722249,1717729843536,-39304.3009,0.00026898,2]
[328722250,1717729843549,-100000.0,0.00026898,2]
[328722251,1717729843558,-1374.165,0.00026898,2]
[328722252,1717729843568,-2753.78763762,0.000269,2]
[328722253,1717729843578,-76603.74417903,0.00026998,2]
[328722254,1717729843587,-1300.0,0.00027,2]
[328722255,1717729843596,-280.90460886,0.00027,2]
[328722256,1717729843606,-500.0,0.00027035,2]
[328722257,1717729843615,-2753.78763762,0.00027233,2]
[328722258,1717729843624,-653.0,0.000273,3]
[328722259,1717729843634,-2341.0,0.000273,3]
[328722260,1717729843644,-246.86796234,0.0002739,2]
[328722261,1717729843653,-172.19,0.00027397,2]
[328722262,1717729843663,-601.38,0.00027397,10]
[328722263,1717729843672,-574.08,0.00027397,10]
[328722264,1717729843682,-478.4,0.00027397,10]
[328722265,1717729843692,-2000.0,0.000274,2]
[328722266,1717729843701,-500.0,0.000274,2]
[328722267,1717729843710,-6045.08438979,0.000274,2]
[328722268,1717729843721,-200.0,0.000274,2]
[328722269,1717729843730,-5699.66442023,0.000274,2]
[328722270,1717729843739,-1200.0,0.000274,2]
[328722271,1717729843749,-490.0,0.000274,2]
[328722272,1717729843758,-180.0,0.00027431,2]
[328722273,1717729843767,-2753.78763762,0.00027567,2]
[328722274,1717729843776,-500.0,0.00027583,2]
[328722275,1717729843785,-151.0,0.0002774,7]
[328722276,1717729843795,-364.84,0.00027796,2]
[328722277,1717729843805,-2753.78763762,0.000279,2]
[328722278,1717729843814,-279.11,0.00027921,2]
[328722279,1717729843824,-933.12827824,0.00027928,2]
[328722280,1717729843833,-151.0,0.00027991,7]
[328722281,1717729843842,-468.72828225,0.0002813,2]
[328722282,1717729843852,-500.0,0.00028131,2]
[328722284,1717729843861,-976.0535,0.0002822,2]
[328722286,1717729843871,-2753.78763762,0.00028233,2]
[328722287,1717729843881,-151.0,0.00028242,7]
[328722288,1717729843892,-1029.0,0.000283,2]
[328722289,1717729843901,-185.60269822,0.000284,2]
[328722290,1717729843911,-357.6437744,0.000284,2]
[328722291,1717729843920,-306.11743187,0.000284,2]
[328722292,1717729843930,-1000.0,0.0002844,2]
[328722293,1717729843939,-154.87,0.0002849,2]
[328722294,1717729843948,-151.0,0.00028493,7]
[328722295,1717729843958,-282.99569921,0.00028499,2]
[328722296,1717729843967,-248.0,0.000285,5]
[328722297,1717729843976,-480962.11731353,0.000285,2]
[328722298,1717729843988,-840.00000001,0.000285,2]
[328722299,1717729843999,-500.0,0.000285,2]
[328722300,1717729844010,-615.48204911,0.000285,2]
[328722301,1717729844023,-291411.75713448,0.000285,2]
[328722302,1717729844159,-2469.55910093,0.000285,2]
[328722303,1717729844170,-2180.4023779,0.000285,2]
[328722304,1717729846447,-182.19914844,0.00028498,2]
[328722305,1717729846459,-299.29433227,0.00028498,2]
[328722306,1717729846471,-74410.05251316,0.000285,2]
[328722307,1717729846484,-953.67,0.000285,2]
[328722384,1717731032469,-620.85973177,0.00017204,2]
[328722385,1717731032478,-155.0,0.00017205,2]
[328722386,1717731032488,-3268.86327992,0.00017205,2]
[328722387,1717731032499,-679.62579436,0.00017205,2]
[328722388,1717731032751,-3589.22933776,0.00017205,2]
[328722389,1717731032761,-1900.83710375,0.00017206,2]
[328722390,1717731032770,-1887.30483779,0.00017232,2]
[328722391,1717731032781,-499.99,0.000192,2]
[328722392,1717731032791,-3891.69438003,0.000192,2]
[328722393,1717731032801,-151.97,0.00020141,2]
[328722394,1717731032810,-392.32,0.00023088,2]
[328722396,1717731032821,-556.4792229,0.00024,2]
[328722398,1717731032830,-154.43,0.00024384,2]
[328722399,1717731032841,-366.12,0.00024384,2]
[328722400,1717731032850,-582.46186762,0.00024756,3]
[328722401,1717731032861,-200.0,0.00024794,2]
[328722402,1717731032871,-150.0,0.00024811,2]
[328722403,1717731032882,-250.0,0.00024856,2]
[328722404,1717731032893,-171.88,0.0002486,2]
[328722405,1717731032903,-769.57,0.00024862,2]
[328722406,1717731032914,-250.0,0.00024941,2]
[328722407,1717731032925,-4960.34407433,0.00025,2]
[328722408,1717731032935,-1250.0,0.00025,2]
[328722409,1717731032947,-159.01858413,0.00025,2]
[328722410,1717731032958,-325.85502295,0.00025007,2]
[328722411,1717731032967,-155.0,0.00025008,2]
[328722412,1717731032976,-170.32,0.00025059,2]
[328722413,1717731032985,-500.0,0.00025085,2]
[328722414,1717731032995,-1000.0,0.00025098,2]
[328722415,1717731033004,-15104.17,0.000251,2]
[328722416,1717731033014,-5580.88,0.0002519,2]
[328722417,1717731033023,-170.6,0.000252,2]
[328722418,1717731033034,-250.0,0.000252,2]
[328722419,1717731033043,-465.24,0.00025214,2]
[328722420,1717731033052,-392.32,0.00025352,2]
[328722421,1717731033061,-1400.44,0.00025361,2]
[328722422,1717731033071,-167.2,0.00025505,2]
[328722423,1717731033080,-151.0,0.00025603,5]
[328722424,1717731033089,-200.978798,0.000258,2]
[328722425,1717731033099,-500.0,0.00025939,2]
[328722426,1717731033108,-500.0,0.00025939,2]
[328722427,1717731033117,-167.2,0.0002617,2]
[328722428,1717731033127,-151.0,0.00026483,5]
[328722429,1717731033136,-4918.32,0.00026582,2]
[328722430,1717731033146,-3000.0,0.000266,2]
[328722431,1717731033155,-36470.9062,0.00026798,2]
[328722432,1717731033165,-31420.0941,0.00026798,2]
[328722433,1717731033175,-167.2,0.00026834,2]
[328722434,1717731033184,-754.71874064,0.00026875,2]
[328722435,1717731033194,-1300.0,0.00027,2]
[328722436,1717731033205,-381.29734886,0.00027,2]
[328722437,1717731033214,-167.42,0.00027012,2]
[328722438,1717731033224,-4028.02815761,0.00027034,2]
[328722439,1717731033234,-500.0,0.00027035,2]
[328722440,1717731033243,-500.0,0.00027035,2]
[328722441,1717731033253,-171.88,0.00027345,2]
[328722442,1717731033263,-151.0,0.00027362,7]
[328722443,1717731033272,-172.19,0.00027397,2]
[328722444,1717731033282,-398.66,0.00027397,10]
[328722445,1717731033291,-332.22,0.00027397,10]
[328722446,1717731033301,-200.0,0.000274,2]
[328722447,1717731033312,-3587.87259836,0.000274,2]
[328722448,1717731033322,-1000.0,0.000274,2]
[328722449,1717731033332,-2000.0,0.000274,2]
[328722450,1717731033342,-500.0,0.000274,2]
[328722451,1717731033351,-1200.0,0.000274,2]
[328722452,1717731033360,-392.32,0.00027616,2]
[328722453,1717731033370,-180.0,0.00027678,2]
[328722454,1717731033379,-170.204094,0.00027728,2]
[328722455,1717731033388,-698.140757,0.00027728,2]
[328722456,1717731033398,-583.160894,0.00027728,2]
[328722457,1717731033407,-187.831712,0.00027728,2]
[328722458,1717731033417,-311.806132,0.00027728,2]
[328722459,1717731033426,-200.0,0.000278,2]
[328722460,1717731033435,-465.24,0.00027954,2]
[328722461,1717731033445,-764.96744628,0.00028,10]
[328722462,1717731033455,-468.72828225,0.00028074,2]
[328722463,1717731033465,-698.140757,0.00028075,2]
[328722464,1717731033474,-583.160894,0.00028075,2]
[328722465,1717731033483,-311.806132,0.00028075,2]
[328722466,1717731033492,-500.0,0.00028131,2]
[328722467,1717731033502,-500.0,0.00028131,2]
[328722468,1717731033512,-1000.0,0.00028235,2]
[328722469,1717731033719,-151.0,0.00028241,7]
[328722470,1717731033728,-1376.89381881,0.000283,2]
[328722471,1717731033742,-15779.3413,0.000284,2]
[328722472,1717731033753,-1000.0,0.000284,2]
[328722473,1717731033762,-1272.778,0.000284,2]
[328722474,1717731033771,-267.85275293,0.000284,2]
[328722475,1717731033782,-366.47839112,0.000284,2]
[328722476,1717731033791,-698.140757,0.00028422,2]
[328722477,1717731033800,-583.160894,0.00028422,2]
[328722478,1717731033809,-311.806132,0.00028422,2]
[328722479,1717731033819,-1376.89381881,0.00028478,2]
[328722480,1717731033829,-153.99,0.0002849,2]
[328722481,1717731033838,-212.24677441,0.00028499,2]
[328722482,1717731033847,-194.48021842,0.00028499,2]
[328722483,1717731033856,-500.0,0.00028499,2]
[328722484,1717731033865,-388.62806191,0.00028499,2]
[328722485,1717731033874,-508.85113719,0.00028499,2]
[328722486,1717731033883,-586.67198163,0.00028499,2]
[328722487,1717731033893,-279.50916553,0.00028499,2]
[328722488,1717731033902,-403.16807356,0.00028499,2]
[328722489,1717731033911,-500.0,0.00028499,2]
[328722490,1717731033921,-500.0,0.00028499,2]
[328722491,1717731033931,-500.0,0.00028499,2]
[328722492,1717731033940,-500.0,0.00028499,2]
[328722493,1717731033949,-500.0,0.00028499,2]
[328722494,1717731033959,-500.0,0.00028499,2]
[328722495,1717731033968,-491.51512036,0.00028499,2]
[328722496,1717731033978,-500.0,0.00028499,2]
[328722497,1717731033987,-500.0,0.00028499,2]
[328722498,1717731033996,-500.0,0.00028499,2]
[328722499,1717731034006,-500.0,0.00028499,2]
[328722500,1717731034015,-60140.34269105,0.000285,2]
[328722501,1717731038338,-155.0,0.00017203,2]
[328722502,1717731038349,-155.0,0.0002014,2]
[328722503,1717731038359,-4028.02815761,0.00027,2]
[328722504,1717731038369,-276.85,0.00027397,10]
[328722505,1717731038379,-5593.76628238,0.000285,2]
[328722506,1717731038391,-28299.95172406,0.000285,2]
[328722507,1717731038403,-3700.62304756,0.000285,2]
[328722508,1717731038683,-554518.64727928,0.000285,2]
[328722509,1717731038693,-345.0,0.000285,2]
[328722510,1717731038704,-959.88938005,0.000285,2]
[328722511,1717731038714,-34972.42451795,0.000285,2]
[328722512,1717731038723,-169.07823965,0.000285,2]
[328722513,1717731038734,-1046.71514559,0.000285,2]
[328722514,1717731038748,-446.79515573,0.000285,2]
[328722515,1717731038758,-500.0,0.000285,2]
[328722516,1717731038768,-1203.42195458,0.000285,2]
[328722517,1717731038778,-1160.07432669,0.000285,2]
[328722518,1717731038789,-813.37792,0.000285,2]